bitfinex-derivatives/quotes_BTCF0:USTF0_20241224
["timestamp","ask_amount","ask_price","bid_price","bid_amount"]
[1735024535833,0.37131204,94018.0,94015.0,0.05326]
[1735024536231,0.37131204,94018.0,94017.0,0.053259]
[1735024536537,0.01051204,94018.0,94017.0,0.053259]
[1735024536729,0.3608,94033.0,94032.0,0.05325]
[1735024537134,0.3608,94033.0,94023.0,0.1088494]
[1735024537135,0.42489084,94033.0,94027.0,0.053252]
[1735024537341,0.37164184,94033.0,94030.0,0.053251]
[1735024538129,0.37164184,94033.0,94023.0,0.1088494]
[1735024538337,0.37164184,94033.0,94024.0,0.01596]
[1735024538535,0.3608,94025.0,94024.0,0.01596]
[1735024539342,0.3608,94025.0,94021.0,0.053256]
[1735024539546,0.3608,94025.0,94022.0,0.053255]
[1735024539936,0.3608,94025.0,94024.0,0.001]
[1735024541146,0.3608,94025.0,94024.0,0.054255]
[1735024542155,0.3608,94025.0,94024.0,0.053255]
[1735024542969,0.3608,94025.0,94024.0,0.054255]
[1735024553949,0.0932,94040.0,94024.0,0.3618]
[1735024554140,0.0932,94040.0,94039.0,0.053246]
[1735024555644,0.0932,94040.0,94039.0,0.054246]
[1735024555946,0.0932,94040.0,94039.0,0.056246]
[1735024557043,0.010461,94043.0,94042.0,0.053244]
[1735024557244,0.0963,94049.0,94039.0,0.003]
[1735024557245,0.0963,94049.0,94048.0,0.053241]
[1735024558549,0.053242,94046.0,94042.0,0.001]
[1735024559342,0.053242,94046.0,94040.0,0.29428931]
[1735024560341,0.053243,94045.0,94040.0,0.29428931]
[1735024560541,0.053243,94045.0,94042.0,0.053244]
[1735024561144,0.053243,94045.0,94042.0,0.24428831]
[1735024561848,0.053243,94045.0,94042.0,0.24528831]
[1735024562549,0.053243,94045.0,94043.0,0.19104431]
[1735024563544,0.10692944,94049.0,94043.0,0.24428731]
[1735024563746,0.10692944,94049.0,94044.0,0.19104431]
[1735024563747,0.05692944,94049.0,94044.0,0.19104431]
[1735024563947,0.01062944,94049.0,94047.0,0.053241]
[1735024564166,0.12577818,94052.0,94044.0,0.19104431]
[1735024564455,0.12577818,94052.0,94051.0,0.053239]
[1735024564944,0.12577818,94054.0,94045.0,0.3608]
[1735024565151,0.12577818,94054.0,94052.0,0.053239]
[1735024565550,0.12577818,94054.0,94053.0,0.3608]
[1735024566545,0.01325254,94058.0,94055.0,0.053237]
[1735024566745,0.053233,94062.0,94055.0,0.053237]
[1735024566947,0.053233,94062.0,94053.0,0.55260431]
[1735024566948,0.12577818,94066.0,94064.0,0.053232]
[1735024567149,0.1389574,94066.0,94064.0,0.053232]
[1735024568156,0.3608,94073.0,94067.0,0.05323]
[1735024568357,0.1082739,94068.0,94067.0,0.05323]
[1735024568852,0.12577818,94077.0,94063.0,0.3608]
[1735024569154,0.12577818,94077.0,94076.0,0.053225]
[1735024569457,0.23337067,94080.0,94077.0,0.053224]
[1735024569657,0.13937067,94080.0,94078.0,0.053224]
[1735024569857,0.13937067,94080.0,94079.0,0.0969]
[1735024570152,0.12577818,94080.0,94079.0,0.0969]
[1735024570347,0.12577818,94080.0,94079.0,0.1879]
[1735024570549,0.153212,94100.0,94091.0,0.053216]
[1735024570857,0.16664718,94100.0,94093.0,0.053215]
[1735024571059,0.16664718,94100.0,94094.0,0.053215]
[1735024572453,0.11343518,94100.0,94091.0,0.3618]
[1735024572651,0.053213,94097.0,94094.0,0.001]
[1735024573852,0.414014,94095.0,94094.0,0.001]
[1735024574060,0.414014,94095.0,94085.0,1.584e-05]
[1735024574061,0.053219,94086.0,94085.0,1.584e-05]
[1735024574358,0.053226,94074.0,94073.0,0.13603877]
[1735024574674,0.05323,94068.0,94067.0,0.38215169]
[1735024574865,0.05323,94068.0,94067.0,0.38139169]
[1735024575751,0.05323,94068.0,94060.0,0.1620834]
[1735024576160,0.05323,94068.0,94060.0,0.1088494]
[1735024576357,0.3608,94074.0,94067.0,0.05323]
[1735024576859,0.053227,94073.0,94067.0,0.05423]
[1735024577059,0.053229,94069.0,94067.0,0.001]
[1735024577553,0.053229,94069.0,94060.0,0.1088494]
[1735024577857,0.053229,94069.0,94067.0,0.001]
[1735024578160,0.001,94068.0,94067.0,0.001]
[1735024578659,0.002,94069.0,94067.0,0.07019]
[1735024580966,0.002,94068.0,94067.0,0.07019]
[1735024581660,0.053227,94074.0,94067.0,0.06919]
[1735024581858,0.001,94069.0,94067.0,0.07019]
[1735024582348,0.053227,94074.0,94067.0,0.01596]
[1735024582554,0.053227,94074.0,94070.0,0.053228]
[1735024584467,0.01315537,94081.0,94067.0,0.01696]
[1735024584777,0.001,94074.0,94073.0,0.053226]
[1735024585648,0.001,94074.0,94072.0,0.053227]
[1735024585853,0.053224,94078.0,94073.0,0.0913]
[1735024586461,0.001,94074.0,94073.0,0.0923]
[1735024587952,0.3608,94074.0,94073.0,0.0913]
[1735024588153,0.3608,94074.0,94073.0,0.001]
[1735024588654,0.415026,94074.0,94073.0,0.001]
[1735024591063,0.053236,94057.0,94049.0,0.0936]
[1735024591253,0.414036,94057.0,94048.0,0.0908]
[1735024592464,0.415036,94057.0,94041.0,0.0949]
[1735024593962,0.54124793,94057.0,94041.0,0.0949]
[1735024594157,0.55775982,94057.0,94041.0,0.0949]
[1735024594957,0.55975982,94057.0,94041.0,0.0949]
[1735024595557,0.55975982,94057.0,94056.0,0.00259472]
[1735024595768,0.43354789,94057.0,94056.0,0.00259472]
[1735024596259,0.417036,94057.0,94056.0,0.00259472]
[1735024596565,0.417036,94057.0,94056.0,0.09849472]
[1735024597365,0.417036,94057.0,94056.0,0.0969]
[1735024597956,0.416036,94057.0,94056.0,0.0969]
[1735024599771,0.416036,94057.0,94056.0,0.0959]
[1735024600867,0.055236,94057.0,94056.0,0.0959]
[1735024602257,0.12633627,94064.0,94056.0,0.0959]
[1735024602857,0.09474946,94060.0,94056.0,0.0959]
[1735024603077,0.09474946,94060.0,94056.0,0.149136]
[1735024603657,0.12633627,94064.0,94057.0,0.11366995]
[1735024603866,0.12633627,94064.0,94057.0,0.16690495]
[1735024604068,0.41459201,94065.0,94057.0,0.16690495]
[1735024604369,0.414032,94065.0,94057.0,0.16690495]
[1735024604572,0.053233,94063.0,94057.0,0.053235]
[1735024605761,0.053233,94062.0,94057.0,0.053235]
[1735024607573,0.053233,94062.0,94058.0,0.0906]
[1735024607960,0.053234,94060.0,94058.0,0.0906]
[1735024608674,0.01662286,94072.0,94058.0,0.0916]
[1735024608875,0.053227,94073.0,94071.0,0.3608]
[1735024609077,0.053227,94073.0,94072.0,0.0921]
[1735024611470,0.053227,94073.0,94072.0,0.0931]
[1735024617882,0.053227,94073.0,94072.0,0.001]
[1735024620587,0.053227,94073.0,94055.0,0.00011913]
[1735024620588,0.053236,94056.0,94055.0,0.00011913]
[1735024620788,0.414036,94056.0,94055.0,0.00011913]
[1735024621996,0.42934389,94056.0,94055.0,0.00011913]
[1735024622892,0.3608,94056.0,94055.0,0.00011913]
[1735024623098,0.15776492,94060.0,94055.0,0.00011913]
[1735024623302,0.21099692,94064.0,94059.0,0.3608]
[1735024623589,0.21099692,94064.0,94060.0,0.1903]
[1735024624397,0.15776492,94064.0,94060.0,0.1903]
[1735024624995,0.053228,94072.0,94062.0,0.053233]
[1735024625195,0.053228,94071.0,94068.0,0.3608]
[1735024625395,0.053229,94070.0,94068.0,0.3608]
[1735024627503,0.053229,94070.0,94068.0,0.001]
[1735024628005,0.053234,94061.0,94060.0,0.1903]
[1735024629305,0.054234,94061.0,94060.0,0.1913]
[1735024633399,0.001,94061.0,94060.0,0.244534]
[1735024634831,0.05323,94068.0,94060.0,0.244534]
[1735024635104,0.12642475,94073.0,94070.0,0.053228]
[1735024635907,0.053227,94073.0,94067.0,0.3608]
[1735024636106,0.01536775,94076.0,94064.0,0.053231]
[1735024636405,0.12642475,94077.0,94064.0,0.053231]
[1735024636606,0.053229,94070.0,94064.0,0.053231]
[1735024637504,0.053229,94069.0,94064.0,0.053231]
[1735024637705,0.053229,94069.0,94064.0,0.054231]
[1735024638712,0.053229,94069.0,94064.0,0.053231]
[1735024638907,0.053229,94069.0,94064.0,0.054231]
[1735024643812,0.3608,94071.0,94064.0,0.001]
[1735024644014,0.05323,94067.0,94064.0,0.001]
[1735024647314,0.12642475,94069.0,94067.0,0.05323]
[1735024647618,0.12642475,94069.0,94068.0,0.0913]
[1735024648516,0.3608,94071.0,94068.0,0.0913]
[1735024648718,0.12642475,94074.0,94068.0,0.0913]
[1735024649019,0.053229,94069.0,94068.0,0.0913]
[1735024649658,0.053229,94069.0,94067.0,0.001]
[1735024650518,0.12642475,94074.0,94062.0,0.053233]
[1735024650519,0.05323,94068.0,94062.0,0.053233]
[1735024650722,0.05323,94068.0,94063.0,0.053232]
[1735024651120,0.05323,94068.0,94067.0,0.001]
[1735024651712,0.05323,94068.0,94063.0,0.053232]
[1735024652419,0.12642475,94073.0,94067.0,0.001]
[1735024652839,0.12642475,94069.0,94067.0,0.001]
[1735024653119,0.12642475,94069.0,94067.0,0.05423]
[1735024653724,0.12642475,94069.0,94067.0,0.05323]
[1735024654424,0.12642475,94069.0,94067.0,0.05423]
[1735024655421,0.12642475,94068.0,94067.0,0.05423]
[1735024658420,0.053228,94072.0,94067.0,0.05423]
[1735024660822,0.12675256,94068.0,94067.0,0.05423]
[1735024662233,0.053228,94072.0,94067.0,0.05423]
[1735024663326,0.15776492,94074.0,94067.0,0.05423]
[1735024663525,0.053229,94070.0,94067.0,0.05423]
[1735024665923,0.05323,94069.0,94067.0,0.001]
[1735024666129,0.05323,94069.0,94067.0,0.25578103]
[1735024666436,0.05323,94069.0,94067.0,0.25478103]
[1735024666639,0.05323,94069.0,94067.0,0.25578103]
[1735024667028,0.05323,94069.0,94067.0,0.25478103]
[1735024667233,0.05323,94069.0,94067.0,0.25578103]
[1735024667435,0.05323,94069.0,94067.0,0.001]
[1735024674740,0.05323,94069.0,94067.0,0.05423]
[1735024674942,0.15776492,94071.0,94069.0,0.053229]
[1735024675544,0.21099292,94071.0,94069.0,0.053229]
[1735024676038,0.053228,94071.0,94069.0,0.053229]
[1735024677034,0.053228,94071.0,94069.0,0.414029]
[1735024677239,0.053228,94071.0,94069.0,0.415029]
[1735024677642,0.053228,94071.0,94069.0,0.67041565]
[1735024679336,0.15776492,94075.0,94069.0,0.61718665]
[1735024679636,0.053228,94071.0,94069.0,0.61718665]
[1735024680142,0.053228,94071.0,94069.0,0.25638665]
[1735024681041,0.053228,94071.0,94069.0,0.001]
[1735024685441,0.053234,94061.0,94060.0,0.24535691]
[1735024685640,0.053236,94056.0,94055.0,0.00011913]
[1735024687144,0.054236,94056.0,94055.0,0.00011913]
[1735024687345,0.10612532,94056.0,94055.0,0.00011913]
[1735024688341,0.11963929,94056.0,94055.0,0.00011913]
[1735024688746,0.11963929,94056.0,94055.0,0.00111913]
[1735024691146,0.06774997,94056.0,94055.0,0.00111913]
[1735024691350,0.22581273,94056.0,94055.0,0.00111913]
[1735024692454,0.06774997,94056.0,94055.0,0.00111913]
[1735024695648,0.15806276,94059.0,94055.0,0.00111913]
[1735024695848,0.053233,94062.0,94056.0,0.0979]
[1735024696155,0.24308092,94067.0,94057.0,0.053236]
[1735024696341,0.24308092,94067.0,94057.0,0.1087057]
[1735024696545,0.24308092,94067.0,94058.0,0.053235]
[1735024696745,0.053231,94066.0,94058.0,0.053235]
[1735024696945,0.001,94059.0,94058.0,0.053235]
[1735024697146,0.053232,94065.0,94058.0,0.053235]
[1735024697552,0.001,94067.0,94064.0,0.3608]
[1735024697854,0.001,94067.0,94065.0,0.091]
[1735024699750,0.01343167,94069.0,94065.0,0.091]
[1735024699946,0.053229,94069.0,94065.0,0.091]
[1735024700146,0.053226,94075.0,94067.0,0.05323]
[1735024700550,0.053226,94075.0,94068.0,0.0906]
[1735024700955,0.12637256,94078.0,94068.0,0.0906]
[1735024701144,0.06723671,94081.0,94075.0,0.053225]
[1735024701354,0.06723671,94081.0,94076.0,0.0957]
[1735024702049,0.053222,94081.0,94076.0,0.0957]
[1735024703051,0.053222,94081.0,94076.0,0.0967]
[1735024704557,0.36136001,94082.0,94076.0,0.0967]
[1735024704759,0.3608,94082.0,94078.0,0.053224]
[1735024705557,0.3608,94082.0,94079.0,0.053223]
[1735024705754,0.01375658,94083.0,94079.0,0.053223]
[1735024705951,0.05322,94086.0,94079.0,0.053223]
[1735024706658,0.05322,94085.0,94079.0,0.053223]
[1735024709955,0.05322,94085.0,94076.0,0.0957]
[1735024710164,0.05322,94085.0,94080.0,0.053223]
[1735024711372,0.3608,94097.0,94081.0,0.3608]
[1735024711553,0.053216,94093.0,94089.0,0.053218]
[1735024711767,0.12637256,94098.0,94096.0,0.053214]
[1735024711965,0.14030165,94098.0,94097.0,0.0923]
[1735024713175,0.01392909,94098.0,94097.0,0.0923]
[1735024713367,0.053213,94099.0,94097.0,0.0923]
[1735024713774,0.06616833,94099.0,94097.0,0.0923]
[1735024715676,0.06616833,94099.0,94097.0,0.0933]
[1735024718480,0.3608,94098.0,94097.0,0.001]
[1735024719181,0.455,94098.0,94097.0,0.001]
[1735024719585,0.455,94098.0,94090.0,0.093]
[1735024719881,0.053217,94091.0,94090.0,0.093]
[1735024720786,0.053223,94079.0,94078.0,0.01596]
[1735024721080,0.3608,94087.0,94076.0,0.0955]
[1735024721280,0.053225,94077.0,94076.0,0.0955]
[1735024722880,0.053225,94077.0,94076.0,0.0975]
[1735024723981,0.053225,94077.0,94076.0,0.0995]
[1735024727480,0.09487102,94078.0,94076.0,0.0995]
[1735024727681,0.09487102,94079.0,94076.0,0.0995]
[1735024727887,0.09487102,94079.0,94077.0,0.053224]
[1735024728776,0.09487102,94079.0,94078.0,0.0941]
[1735024729182,0.09487102,94081.0,94078.0,0.0941]
[1735024729386,0.09487102,94081.0,94078.0,0.147324]
[1735024729783,0.09487102,94081.0,94079.0,0.00100922]
[1735024730379,0.09487102,94080.0,94079.0,0.00100922]
[1735024731888,0.09487102,94080.0,94079.0,0.00200922]
[1735024732790,0.09487102,94080.0,94079.0,0.00300922]
[1735024733392,0.12637256,94084.0,94079.0,0.00300922]
[1735024733992,0.12637256,94084.0,94081.0,0.00100922]
[1735024734994,0.12637256,94084.0,94082.0,0.00100922]
[1735024735991,0.12637256,94084.0,94083.0,0.00100922]
[1735024740493,0.05322,94086.0,94083.0,0.00100922]
[1735024740693,0.053221,94084.0,94083.0,0.00100922]
[1735024744193,0.01281106,94087.0,94083.0,0.05423022]
[1735024744388,0.15826058,94090.0,94085.0,0.3608]
[1735024744604,0.21147758,94090.0,94088.0,0.053218]
[1735024744795,0.053217,94090.0,94088.0,0.053218]
[1735024744992,0.053217,94090.0,94089.0,0.00100922]
[1735024745295,0.00426058,94091.0,94090.0,0.053217]
[1735024745996,0.00426058,94091.0,94090.0,0.05422622]
[1735024746596,0.09513006,94092.0,94091.0,0.053216]
[1735024747007,0.09513006,94092.0,94091.0,0.05422522]
[1735024747895,0.18005308,94097.0,94091.0,0.05422522]
[1735024747896,0.12684008,94096.0,94091.0,0.05422522]
[1735024748095,0.12684008,94096.0,94093.0,0.00100922]
[1735024749212,0.12684008,94096.0,94094.0,0.00100922]
[1735024749599,0.12684008,94096.0,94095.0,0.0946]
[1735024750099,0.12684008,94096.0,94095.0,0.09560922]
[1735024750598,0.053213,94097.0,94095.0,0.09560922]
[1735024750997,0.11235845,94100.0,94098.0,0.053212]
[1735024751198,0.11235845,94100.0,94099.0,0.00100922]
[1735024752085,0.1,94100.0,94099.0,0.00100922]
[1735024753403,0.19506977,94100.0,94099.0,0.00100922]
[1735024754491,0.1,94100.0,94099.0,0.00100922]
[1735024757802,0.1,94100.0,94099.0,0.01696922]
[1735024764011,0.1,94100.0,94099.0,0.00100922]
[1735024765012,0.19506977,94100.0,94099.0,0.00100922]
[1735024768009,0.1,94100.0,94099.0,0.00100922]
[1735024769245,0.19506977,94100.0,94099.0,0.00100922]
[1735024770108,0.1,94100.0,94099.0,0.00100922]
[1735024775614,0.1,94100.0,94099.0,0.25600289]
[1735024777623,0.1,94100.0,94099.0,0.27196289]
[1735024778525,0.1,94100.0,94099.0,0.25600289]
[1735024778823,0.1,94100.0,94099.0,0.27196289]
[1735024779323,0.22680387,94100.0,94099.0,0.27196289]
[1735024780024,0.22680387,94100.0,94099.0,0.25600289]
[1735024780221,0.22680387,94100.0,94099.0,0.00100922]
[1735024780430,0.22680387,94100.0,94094.0,0.31726465]
[1735024780727,0.414014,94095.0,94094.0,0.31726465]
[1735024782122,0.60238454,94095.0,94081.0,0.20730424]
[1735024782325,0.053219,94086.0,94081.0,0.20730424]
[1735024782527,0.60238454,94095.0,94081.0,0.20730424]
[1735024782528,0.053222,94082.0,94081.0,0.20730424]
[1735024783836,0.053222,94082.0,94081.0,0.01596]
[1735024784617,0.05322,94085.0,94080.0,0.01596]
[1735024784818,0.053222,94081.0,94080.0,0.01596]
[1735024786031,0.053222,94081.0,94080.0,0.01796]
[1735024786328,0.053222,94081.0,94080.0,0.02096]
[1735024787925,0.053222,94081.0,94080.0,0.005]
[1735024789734,0.17986226,94081.0,94080.0,0.005]
[1735024791026,0.053222,94081.0,94080.0,0.005]
[1735024794924,0.053222,94081.0,94062.0,0.3608]
[1735024794925,0.3,94081.0,94062.0,0.3608]
[1735024795128,0.053232,94063.0,94062.0,0.3608]
[1735024796127,0.053232,94063.0,94062.0,0.3628]
[1735024797834,0.053235,94060.0,94057.0,0.00159466]
[1735024798931,0.053235,94059.0,94057.0,0.00159466]
[1735024800526,0.058235,94059.0,94057.0,0.00159466]
[1735024801121,0.059235,94059.0,94057.0,0.00159466]
[1735024801524,0.07139811,94059.0,94057.0,0.00159466]
[1735024802326,0.07139811,94059.0,94057.0,0.05483066]
[1735024802327,0.006,94059.0,94057.0,0.05483066]
[1735024804429,0.006,94059.0,94057.0,0.06690993]
[1735024805028,0.006,94059.0,94057.0,0.05483066]
[1735024806734,0.059235,94059.0,94057.0,0.00159466]
[1735024811234,0.059235,94059.0,94057.0,0.1929389]
[1735024812536,0.15404034,94059.0,94057.0,0.00159466]
[1735024813844,0.059235,94059.0,94057.0,0.1929389]
[1735024815042,0.15404034,94059.0,94057.0,0.1929389]
[1735024815438,0.15404034,94059.0,94058.0,0.053235]
[1735024816434,0.053235,94059.0,94058.0,0.053235]
[1735024816635,0.057235,94059.0,94058.0,0.053235]
[1735024817945,0.057235,94059.0,94058.0,0.069195]
[1735024819544,0.15204034,94059.0,94058.0,0.069195]
[1735024820848,0.15204034,94059.0,94058.0,0.053235]
[1735024821149,0.057235,94059.0,94058.0,0.053235]
[1735024824548,0.057235,94059.0,94058.0,0.30836065]
[1735024825050,0.004,94059.0,94058.0,0.30836065]
[1735024825746,0.004,94059.0,94058.0,0.053235]
[1735024827946,0.12664026,94062.0,94061.0,0.053234]
[1735024828156,0.15846796,94069.0,94068.0,0.05323]
[1735024828457,0.15846796,94069.0,94068.0,0.41403]
[1735024828756,0.15846796,94070.0,94068.0,0.52917432]
[1735024828954,0.15846796,94070.0,94069.0,0.0955]
[1735024830256,0.16046796,94070.0,94069.0,0.0955]
[1735024830647,0.002,94070.0,94069.0,0.0955]
[1735024830844,0.09507119,94077.0,94076.0,0.053225]
[1735024831756,0.09507119,94078.0,94076.0,0.414025]
[1735024831955,0.09507119,94078.0,94077.0,0.0984]
[1735024832946,0.053216,94092.0,94077.0,0.35342351]
[1735024832947,0.09507119,94083.0,94077.0,0.35342351]
[1735024833656,0.09507119,94083.0,94077.0,0.35442351]
[1735024834047,0.09507119,94083.0,94082.0,0.053222]
[1735024834444,0.01218403,94092.0,94084.0,0.053221]
[1735024834445,0.09507119,94085.0,94084.0,0.053221]
[1735024835864,0.09507119,94088.0,94086.0,0.053219]
[1735024837257,0.09507119,94088.0,94086.0,0.054219]
[1735024837656,0.09507119,94089.0,94087.0,0.053218]
[1735024838854,0.14828819,94091.0,94087.0,0.053218]
[1735024839059,0.14828819,94091.0,94079.0,0.07130987]
[1735024839262,0.14828819,94091.0,94089.0,0.053217]
[1735024840356,0.053217,94091.0,94089.0,0.053217]
[1735024841964,0.01218403,94092.0,94090.0,0.053217]
[1735024842262,0.09507119,94094.0,94090.0,0.053217]
[1735024843158,0.09507119,94095.0,94090.0,0.053217]
[1735024844662,0.053215,94094.0,94090.0,0.053217]
[1735024844854,0.09507119,94095.0,94093.0,0.053215]
[1735024847163,0.09507119,94096.0,94087.0,0.19111773]
[1735024847349,0.09507119,94096.0,94095.0,0.053214]
[1735024848665,0.01173685,94097.0,94095.0,0.053214]
[1735024848963,0.09507119,94098.0,94095.0,0.053214]
[1735024849465,0.09507119,94098.0,94088.0,0.19111773]
[1735024849660,0.09507119,94098.0,94097.0,0.053213]
[1735024849865,0.09507119,94099.0,94097.0,0.053213]
[1735024850862,0.01177554,94099.0,94097.0,0.053213]
[1735024851065,0.153212,94100.0,94097.0,0.053213]
[1735024854968,0.16469388,94100.0,94097.0,0.053213]
[1735024855475,0.09507119,94099.0,94097.0,0.053213]
[1735024855667,0.053215,94094.0,94093.0,0.3608]
[1735024856965,0.053219,94088.0,94086.0,0.19111773]
[1735024858172,0.053219,94088.0,94085.0,0.19111773]
[1735024858765,0.053219,94088.0,94086.0,0.053219]
[1735024859005,0.053219,94088.0,94087.0,0.3608]
[1735024861183,0.053219,94088.0,94087.0,0.3618]
[1735024861397,0.0117027,94088.0,94087.0,0.415019]
[1735024861577,0.09504319,94089.0,94087.0,0.415019]
[1735024861981,0.09504319,94088.0,94087.0,0.415019]
[1735024862789,0.09504319,94088.0,94087.0,0.414019]
[1735024863283,0.09504319,94090.0,94088.0,0.053218]
[1735024864597,0.053216,94093.0,94087.0,0.61682351]
[1735024864789,0.053216,94093.0,94091.0,0.053216]
[1735024866290,0.053216,94093.0,94087.0,0.61582351]
[1735024866291,0.01172018,94095.0,94094.0,0.053215]
[1735024866487,0.25846796,94100.0,94096.0,0.053214]
[1735024866687,0.25846796,94100.0,94090.0,0.07130987]
[1735024866881,0.25846796,94100.0,94098.0,0.053212]
[1735024867085,0.27011389,94100.0,94098.0,0.053212]
[1735024867792,0.11164593,94100.0,94098.0,0.053212]
[1735024869187,0.11164593,94100.0,94098.0,0.24454164]
[1735024871802,0.11164593,94100.0,94098.0,0.053212]
[1735024871991,0.15846796,94107.0,94098.0,0.053212]
[1735024872297,0.18985092,94114.0,94113.0,0.053204]
[1735024872800,0.18985092,94114.0,94113.0,0.17170534]
[1735024873698,0.053199,94123.0,94113.0,0.11850134]
[1735024873896,0.053199,94123.0,94117.0,0.053201]
[1735024874090,0.06448575,94123.0,94117.0,0.053201]
[1735024874900,0.06448575,94123.0,94118.0,0.053201]
[1735024875943,0.053201,94119.0,94117.0,0.19114997]
[1735024876107,0.053201,94119.0,94117.0,0.19214997]
[1735024877704,0.053201,94119.0,94118.0,0.001]
[1735024877896,0.14817986,94119.0,94118.0,0.001]
[1735024878797,0.14817986,94119.0,94117.0,0.001]
[1735024879300,0.09497886,94119.0,94111.0,0.19114997]
[1735024879513,0.14817986,94119.0,94118.0,0.001]
[1735024881006,0.14817986,94119.0,94117.0,0.001]
[1735024881399,0.14817986,94119.0,94109.0,0.19114997]
[1735024881598,0.14817986,94119.0,94118.0,0.001]
[1735024882101,0.14817986,94119.0,94117.0,0.001]
[1735024882306,0.053201,94119.0,94117.0,0.001]
[1735024882702,0.053201,94119.0,94118.0,0.001]
[1735024883809,0.06464743,94119.0,94118.0,0.001]
[1735024884211,0.06464743,94119.0,94117.0,0.001]
[1735024884705,0.06464743,94119.0,94113.0,0.053204]
[1735024884897,0.06464743,94119.0,94118.0,0.001]
[1735024885304,0.06464743,94119.0,94117.0,0.001]
[1735024885908,0.06464743,94119.0,94113.0,0.053204]
[1735024885909,0.01144643,94119.0,94113.0,0.054204]
[1735024886213,0.053202,94117.0,94113.0,0.054204]
[1735024887012,0.1039,94121.0,94113.0,0.054204]
[1735024887610,0.053201,94118.0,94117.0,0.001]
[1735024888012,0.053205,94113.0,94110.0,0.19114997]
[1735024888313,0.053205,94113.0,94109.0,0.053206]
[1735024888811,0.053205,94113.0,94110.0,0.053206]
[1735024888999,0.053205,94113.0,94110.0,0.054206]
[1735024890706,0.053205,94113.0,94111.0,0.053205]
[1735024890908,0.09497886,94120.0,94110.0,0.001]
[1735024891210,0.053201,94119.0,94112.0,0.053204]
[1735024891817,0.053202,94118.0,94112.0,0.053204]
[1735024892315,0.053202,94118.0,94112.0,0.054204]
[1735024893218,0.10640909,94121.0,94112.0,0.054204]
[1735024893407,0.09497886,94120.0,94112.0,0.001]
[1735024893718,0.053204,94113.0,94112.0,0.001]
[1735024894821,0.053204,94113.0,94110.0,0.24435597]
[1735024895117,0.053204,94113.0,94112.0,0.001]
[1735024897219,0.053204,94113.0,94111.0,0.19114997]
[1735024897823,0.06437454,94113.0,94112.0,0.001]
[1735024898213,0.01117054,94113.0,94107.0,0.61658351]
[1735024898427,0.053205,94112.0,94111.0,0.001]
[1735024898615,0.516605,94112.0,94107.0,0.25582351]
[1735024898821,0.053207,94108.0,94107.0,0.25402351]
[1735024899017,0.053207,94108.0,94106.0,0.25402351]
[1735024900317,0.053207,94108.0,94095.0,0.19121042]
[1735024900516,0.053214,94096.0,94095.0,0.19121042]
[1735024902115,0.054214,94096.0,94095.0,0.19121042]
[1735024902310,0.054214,94096.0,94082.0,0.19121042]
[1735024902311,0.053216,94092.0,94082.0,0.19121042]
[1735024903124,0.053216,94092.0,94083.0,0.01596]
[1735024903341,0.053216,94092.0,94080.0,0.19121042]
[1735024904319,0.053216,94092.0,94083.0,0.01596]
[1735024904533,0.053216,94092.0,94080.0,0.19121042]
[1735024904726,0.053216,94092.0,94075.0,0.19121042]
[1735024905320,0.054216,94092.0,94091.0,0.00259395]
[1735024906125,0.14910963,94092.0,94091.0,0.00259395]
[1735024907529,0.054216,94092.0,94091.0,0.00259395]
[1735024908923,0.06561317,94092.0,94091.0,0.00259395]
[1735024915728,0.054216,94092.0,94091.0,0.00259395]
[1735024919251,0.06526604,94092.0,94091.0,0.00259395]
[1735024920239,0.001,94092.0,94091.0,0.00259395]
[1735024923834,0.09484151,94100.0,94099.0,0.053212]
[1735024924739,0.053208,94106.0,94096.0,0.3608]
[1735024924930,0.053208,94106.0,94104.0,0.053209]
[1735024925130,0.01132331,94108.0,94105.0,0.1017]
[1735024925335,0.09484151,94109.0,94105.0,0.1017]
[1735024925632,0.09484151,94109.0,94107.0,0.053207]
[1735024926439,0.053206,94110.0,94107.0,0.053207]
[1735024926641,0.001,94109.0,94107.0,0.053207]
[1735024926948,0.001,94109.0,94108.0,0.11851364]
[1735024928035,0.053202,94117.0,94108.0,0.11851364]
[1735024928237,0.053202,94117.0,94116.0,0.053203]
[1735024930142,0.0113387,94119.0,94109.0,0.28831946]
[1735024930442,0.09484151,94122.0,94117.0,0.053202]
[1735024931038,0.09484151,94122.0,94118.0,0.053201]
[1735024931435,0.09484151,94122.0,94119.0,0.053201]
[1735024931646,0.06453225,94123.0,94119.0,0.053201]
[1735024932739,0.06453225,94123.0,94119.0,0.054201]
[1735024933947,0.0532,94121.0,94119.0,0.001]
[1735024934151,0.01133325,94123.0,94112.0,0.054045]
[1735024934446,0.053202,94117.0,94112.0,0.053205]
[1735024935091,0.053202,94117.0,94113.0,0.053204]
[1735024938044,0.053202,94117.0,94113.0,0.054204]
[1735024938653,0.09484151,94125.0,94113.0,0.054204]
[1735024938654,0.053202,94118.0,94113.0,0.054204]
[1735024939363,0.09484151,94125.0,94113.0,0.054204]
[1735024939551,0.053202,94117.0,94113.0,0.054204]
[1735024939753,0.09484151,94125.0,94113.0,0.054204]
[1735024940053,0.053203,94116.0,94113.0,0.054204]
[1735024940853,0.09484151,94124.0,94113.0,0.054204]
[1735024940854,0.053203,94115.0,94113.0,0.054204]
[1735024941147,0.053203,94115.0,94113.0,0.001]
[1735024941656,0.145304,94114.0,94113.0,0.001]
[1735024942151,0.053205,94112.0,94111.0,0.01596]
[1735024943450,0.053205,94112.0,94111.0,0.01696]
[1735024945154,0.053205,94112.0,94111.0,0.070165]
[1735024946646,0.09484151,94114.0,94113.0,0.053204]
[1735024946953,0.09484151,94115.0,94113.0,0.053204]
[1735024947948,0.09484151,94115.0,94113.0,0.054204]
[1735024948452,0.09484151,94118.0,94117.0,0.053202]
[1735024949663,0.09484151,94120.0,94117.0,0.054202]
[1735024949979,0.09484151,94120.0,94118.0,0.053201]
[1735024951055,0.09484151,94121.0,94118.0,0.19101963]